bitfinex-derivatives/quotes_SOLF0:USTF0_20241218
["timestamp","ask_amount","ask_price","bid_price","bid_amount"]
[1734531477273,2.3024,217.19,217.14,13.49687532]
[1734531477462,10.84034662,217.26,217.1,11.19397532]
[1734531477669,11.19397532,217.24,217.1,11.19397532]
[1734531477967,11.19397532,217.24,217.11,2.3033]
[1734531478166,2.3,217.23,217.11,2.3033]
[1734531479572,2.3028,217.16,217.11,2.3033]
[1734531479871,2.3028,217.16,217.1,11.19397532]
[1734531480072,2.3028,217.16,217.12,2.3031]
[1734531480866,2.3029,217.15,217.1,13.49727532]
[1734531481172,2.3,217.17,217.1,11.19397532]
[1734531482077,11.19397532,217.24,217.1,11.19397532]
[1734531482272,2.3,217.23,217.1,11.19397532]
[1734531482473,2.3,217.22,217.1,11.19397532]
[1734531482667,2.3,217.21,217.1,11.19397532]
[1734531482870,2.3,217.2,217.1,11.19397532]
[1734531483070,2.3025,217.18,217.13,2.303]
[1734531483471,2.3025,217.18,217.1,11.19397532]
[1734531483672,2.3025,217.18,217.13,2.303]
[1734531484277,2.3025,217.18,217.1,11.19397532]
[1734531484479,2.3025,217.18,217.14,2.3029]
[1734531484974,2.3029,217.15,217.12,2.3031]
[1734531486276,2.3,217.2,217.12,2.3031]
[1734531486479,2.3028,217.16,217.12,2.3031]
[1734531486880,2.3028,217.16,217.13,2.303]
[1734531487273,16.65740365,217.27,217.13,11.19397532]
[1734531487473,2.3,217.26,217.17,2.3026]
[1734531487879,2.3,217.26,217.13,11.19397532]
[1734531488074,2.3,217.26,217.15,2.3028]
[1734531488273,2.3,217.26,217.13,11.19397532]
[1734531488575,11.19397532,217.25,217.13,11.19397532]
[1734531488771,11.19397532,217.25,217.1,11.19397532]
[1734531488977,2.3026,217.18,217.1,11.19397532]
[1734531489178,2.3,217.2,217.14,2.3029]
[1734531489781,2.3026,217.17,217.14,2.3029]
[1734531490179,2.3,217.2,217.14,2.3029]
[1734531490476,2.3,217.2,217.13,11.19397532]
[1734531491079,5.46342833,217.27,217.13,11.19397532]
[1734531491281,2.3,217.26,217.13,11.19397532]
[1734531491478,5.46342833,217.27,217.13,11.19397532]
[1734531491779,2.3022,217.22,217.18,2.3024]
[1734531492177,2.302,217.23,217.16,11.19397532]
[1734531492379,2.3,217.25,217.17,1.5401]
[1734531492678,2.3022,217.22,217.18,2.3025]
[1734531492978,2.3,217.25,217.17,1.5401]
[1734531493179,2.302,217.23,217.17,3.8427]
[1734531493374,2.3,217.25,217.17,3.8427]
[1734531493577,2.3,217.25,217.17,1.5401]
[1734531493983,2.3,217.25,217.18,3.0424]
[1734531494383,2.3,217.25,217.2,2.3023]
[1734531494585,2.3,217.25,217.18,3.0424]
[1734531494884,2.3,217.25,217.23,2.302]
[1734531496479,2.3016,217.27,217.23,2.302]
[1734531497087,2.3019,217.24,217.18,3.0424]
[1734531497591,2.3022,217.21,217.18,1.5613]
[1734531498085,2.3022,217.21,217.17,1.5401]
[1734531499080,4.6021,217.22,217.17,1.5401]
[1734531499488,2.3,217.25,217.21,2.3022]
[1734531499788,2.3,217.25,217.17,1.5401]
[1734531499985,2.3,217.25,217.19,2.3024]
[1734531500184,2.3,217.25,217.17,1.5401]
[1734531500585,2.3,217.25,217.21,2.3022]
[1734531500785,2.3,217.25,217.17,1.5401]
[1734531501085,4.6019,217.25,217.2,2.3023]
[1734531501388,2.3,217.25,217.2,2.3023]
[1734531502486,2.3019,217.24,217.2,2.3023]
[1734531502686,2.3,217.25,217.21,2.3022]
[1734531503492,4.6018,217.25,217.21,2.3022]
[1734531503785,11.19397532,217.34,217.19,11.19397532]
[1734531503985,13.14074358,217.33,217.22,11.19397532]
[1734531504183,2.3,217.33,217.23,1.5342]
[1734531504584,2.3013,217.31,217.26,2.3016]
[1734531504994,2.3,217.33,217.26,2.3016]
[1734531505195,11.19397532,217.34,217.23,1.5342]
[1734531505392,2.3013,217.3,217.25,2.3017]
[1734531505587,2.3,217.32,217.23,1.5342]
[1734531505895,2.3013,217.3,217.26,2.3017]
[1734531506695,2.3013,217.3,217.25,2.3018]
[1734531506894,2.3013,217.3,217.23,1.5342]
[1734531507693,2.3013,217.3,217.25,2.3018]
[1734531508094,2.3014,217.29,217.25,2.3018]
[1734531508295,2.3,217.32,217.18,1.4759]
[1734531508296,11.19397532,217.3,217.2,5.5869275]
[1734531509300,11.19397532,217.3,217.18,1.4759]
[1734531510002,2.3,217.32,217.19,11.19397532]
[1734531510502,2.3018,217.26,217.21,2.3022]
[1734531511496,2.3,217.27,217.1,2.3]
[1734531511700,2.3,217.27,217.14,11.19397532]
[1734531511897,2.3,217.27,217.17,11.19397532]
[1734531512497,2.3018,217.25,217.2,2.3022]
[1734531513503,2.3,217.27,217.17,11.19397532]
[1734531513702,11.19397532,217.33,217.2,11.19397532]
[1734531513906,2.3,217.32,217.21,1.4643]
[1734531515205,2.3013,217.3,217.25,2.3017]
[1734531516697,2.3013,217.3,217.26,2.3017]
[1734531517508,2.3,217.31,217.23,11.19397532]
[1734531517707,1.5728,217.38,217.26,11.19397532]
[1734531518005,2.3,217.37,217.26,11.19397532]
[1734531518203,11.19397532,217.39,217.26,11.19397532]
[1734531518406,2.3008,217.35,217.31,2.3011]
[1734531518606,2.3,217.38,217.26,11.19397532]
[1734531519204,2.3007,217.36,217.29,2.3013]
[1734531519402,2.3007,217.36,217.26,11.19397532]
[1734531519797,2.3007,217.36,217.29,11.19397532]
[1734531520098,2.3008,217.35,217.31,2.3011]
[1734531520302,2.3,217.38,217.26,2.3]
[1734531520703,2.301,217.33,217.29,2.3013]
[1734531520900,11.19397532,217.36,217.24,5.3418]
[1734531521102,2.3,217.33,217.24,5.3418]
[1734531521401,2.3011,217.32,217.27,2.3015]
[1734531521805,2.3014,217.29,217.25,7.77186021]
[1734531522199,13.49397532,217.33,217.09,23.63811724]
[1734531522402,11.19397532,217.3,217.15,1.5634]
[1734531523208,2.3017,217.26,217.19,2.3024]
[1734531523408,2.3,217.25,217.19,2.3024]
[1734531524107,2.3,217.25,217.18,5.51579662]
[1734531524614,2.302,217.23,217.18,5.51579662]
[1734531524913,2.302,217.23,217.18,7.81819662]
[1734531525408,2.3,217.25,217.18,7.81819662]
[1734531525609,2.3,217.25,217.17,2.3026]
[1734531525806,2.3,217.25,217.15,1.5634]
[1734531526210,2.3,217.25,217.14,2.3029]
[1734531526611,2.3021,217.22,217.14,2.3029]
[1734531526807,2.3,217.25,217.14,2.3029]
[1734531527307,2.3024,217.2,217.14,2.3029]
[1734531527507,4.6024,217.2,217.14,2.3029]
[1734531527709,4.6024,217.2,217.14,7.71515067]
[1734531527910,4.6024,217.2,217.14,5.41225067]
[1734531528112,4.6024,217.2,217.15,2.3028]
[1734531528814,2.3026,217.18,217.13,2.303]
[1734531530412,2.3029,217.15,217.1,5.3817]
[1734531530908,11.19397532,217.24,217.11,11.19397532]
[1734531531113,2.3,217.23,217.11,11.19397532]
[1734531531812,2.3024,217.19,217.14,2.3029]
[1734531532408,2.5962,217.26,217.11,13.49397532]
[1734531532613,2.3,217.25,217.14,11.19397532]
[1734531532810,2.3,217.24,217.14,11.19397532]
[1734531533810,2.3,217.24,217.18,2.3024]
[1734531534514,2.302,217.23,217.19,2.3024]
[1734531534716,2.302,217.23,217.14,11.19397532]
[1734531535014,2.302,217.23,217.18,2.3024]
[1734531535915,2.3,217.24,217.19,2.3023]
[1734531536317,2.3,217.24,217.14,11.19397532]
[1734531536715,2.3021,217.23,217.14,11.19397532]
[1734531537916,2.3021,217.23,217.16,2.3027]
[1734531538216,2.3021,217.23,217.14,11.19397532]
[1734531538809,2.3021,217.23,217.18,2.3024]
[1734531539009,2.3022,217.21,217.18,2.3024]
[1734531540119,2.3021,217.22,217.18,2.3024]
[1734531540315,7.16787472,217.23,217.1,8.5162487]
[1734531540520,7.16787472,217.21,217.13,7.16787472]
[1734531540713,7.16787472,217.19,217.11,9.46787472]
[1734531540913,2.3,217.18,217.11,9.46787472]
[1734531541715,2.3028,217.16,217.13,7.16787472]
[1734531541913,2.3028,217.16,217.12,2.3031]
[1734531543219,2.3028,217.16,217.13,2.3031]
[1734531543419,11.20429081,217.24,217.1,8.5162487]
[1734531543619,2.3,217.23,217.12,11.20429081]
[1734531543823,2.3,217.23,217.16,2.3027]
[1734531544324,2.3022,217.21,217.16,2.3027]
[1734531545918,2.3,217.23,217.12,13.50429081]
[1734531546623,4.6021,217.23,217.19,2.3024]
[1734531546822,2.3,217.23,217.12,13.50429081]
[1734531547224,2.3021,217.22,217.18,2.3025]
[1734531549622,2.3023,217.21,217.12,13.50429081]
[1734531549919,2.3,217.23,217.1,8.5162487]
[1734531550421,2.3025,217.19,217.14,2.303]
[1734531550623,2.3,217.23,217.14,2.303]
[1734531551019,2.3025,217.19,217.14,2.303]
[1734531551224,2.3,217.23,217.15,2.3028]
[1734531551629,2.3022,217.21,217.12,11.20429081]
[1734531551825,2.3,217.23,217.12,11.20429081]
[1734531552323,2.3022,217.22,217.17,2.3026]
[1734531553325,2.3,217.23,217.17,2.3026]
[1734531553522,2.3022,217.21,217.17,2.3026]
[1734531555319,4.602,217.23,217.12,11.20429081]
[1734531555526,2.3,217.23,217.12,11.20429081]
[1734531555920,2.3,217.23,217.15,11.20429081]
[1734531556328,2.3,217.23,217.12,11.20429081]
[1734531557530,2.3024,217.2,217.16,2.3027]
[1734531560537,2.3024,217.2,217.12,11.20429081]
[1734531560737,2.3024,217.2,217.17,2.3026]
[1734531560936,2.3022,217.21,217.17,2.3026]
[1734531561937,2.26,217.23,217.16,7.16851657]
[1734531562138,4.562,217.23,217.19,2.3024]
[1734531562334,2.302,217.23,217.19,2.3024]
[1734531564140,2.302,217.23,217.1,8.5162487]
[1734531564141,7.16851657,217.23,217.1,8.5162487]
[1734531564340,2.26,217.24,217.15,7.16851657]
[1734531564538,7.16851657,217.23,217.15,7.16851657]
[1734531565437,7.16851657,217.23,217.17,2.3026]
[1734531565438,2.3023,217.21,217.17,2.3026]
[1734531566937,2.3021,217.22,217.19,2.3024]
[1734531567241,2.24,217.25,217.18,7.16851657]
[1734531567641,4.5419,217.25,217.21,2.3021]
[1734531568742,2.3019,217.24,217.21,2.3021]
[1734531572340,7.16851657,217.24,217.14,2.24]
[1734531572844,7.16851657,217.24,217.16,7.16851657]
[1734531573145,2.3021,217.22,217.18,2.3024]
[1734531573346,2.3021,217.22,217.16,7.16851657]
[1734531573347,7.16851657,217.22,217.14,2.24]
[1734531573546,7.16851657,217.22,217.13,7.16851657]
[1734531573843,7.16851657,217.22,217.15,7.16851657]
[1734531574038,7.16851657,217.24,217.15,7.16851657]
[1734531574545,7.16851657,217.24,217.17,2.3026]
[1734531575437,2.3024,217.2,217.17,2.3026]
[1734531575640,7.16851657,217.24,217.17,2.3026]
[1734531576238,2.3023,217.2,217.17,2.3026]
[1734531576438,2.3023,217.2,217.16,9.47121657]
[1734531577141,2.3023,217.2,217.16,7.16851657]
[1734531577340,2.3023,217.2,217.17,2.3026]
[1734531577741,2.24,217.2,217.1,8.5162487]
[1734531577946,9.40851657,217.2,217.13,7.16851657]
[1734531578242,9.40851657,217.2,217.14,2.3029]
[1734531578243,2.3026,217.18,217.14,2.3029]
[1734531578441,2.24,217.2,217.15,7.16851657]
[1734531578950,4.5424,217.2,217.15,7.16851657]
[1734531579351,2.24,217.2,217.15,7.16851657]
[1734531579550,2.24,217.2,217.13,7.16851657]
[1734531580051,2.3027,217.17,217.13,7.16851657]
[1734531580551,2.3027,217.17,217.14,2.3029]
[1734531581553,2.3026,217.18,217.14,2.3029]
[1734531583053,2.24,217.2,217.13,7.16851657]
[1734531583350,2.24,217.2,217.15,7.16851657]
[1734531583653,2.24,217.2,217.17,2.3026]
[1734531583848,2.24,217.2,217.15,7.16851657]
[1734531584053,2.24,217.2,217.1,8.5162487]
[1734531584254,2.24,217.2,217.14,7.16851657]
[1734531585452,4.5424,217.2,217.16,2.3027]
[1734531586254,2.24,217.2,217.15,2.3028]
[1734531586751,9.40851657,217.2,217.12,7.16851657]
[1734531586953,9.40851657,217.2,217.1,1.5316]
[1734531586954,7.16851657,217.18,217.1,1.5316]
[1734531587156,7.16851657,217.16,217.1,1.5316]
[1734531587356,2.26,217.15,217.1,1.5316]
[1734531587561,2.26,217.15,217.04,1.5891]
[1734531587767,2.26,217.15,217.09,7.16851657]
[1734531588358,4.5629,217.15,217.11,2.3032]
[1734531590756,2.26,217.15,217.12,2.3031]
[1734531591061,2.26,217.15,217.11,7.16851657]
[1734531591656,2.2,217.19,217.13,7.16851657]
[1734531592663,4.5025,217.19,217.15,2.3029]
[1734531597458,2.2,217.19,217.16,2.3027]
[1734531597655,7.16851657,217.22,217.16,7.16851657]
[1734531598061,2.2,217.21,217.16,7.16851657]
[1734531598357,2.2,217.21,217.12,1.4958]
[1734531598558,7.16851657,217.2,217.12,8.66431657]
[1734531599555,2.3026,217.18,217.14,2.3029]
[1734531600261,2.3029,217.15,217.11,1.5423]
[1734531600460,7.16851657,217.14,217.02,2.2]
[1734531600665,7.16851657,217.14,217.06,7.16851657]
[1734531600859,2.3032,217.12,217.06,9.47221657]
[1734531601060,7.16851657,217.14,217.06,9.47221657]
[1734531602862,7.16851657,217.14,217.08,9.47211657]
[1734531603067,7.16851657,217.14,217.08,7.16851657]
[1734531604167,7.16851657,217.14,217.08,9.47211657]
[1734531604669,2.3032,217.13,217.08,9.47211657]
[1734531604863,7.16851657,217.12,217.05,7.16851657]
[1734531605270,2.3034,217.11,217.05,7.16851657]
[1734531605468,2.3034,217.11,217.05,9.47231657]
[1734531605671,7.16851657,217.12,217.05,9.47231657]
[1734531605871,2.3034,217.1,217.05,9.47231657]
[1734531606067,9.36851657,217.14,217.07,7.16851657]
[1734531606564,9.36851657,217.14,217.05,9.47231657]
[1734531606769,7.16851657,217.12,217.05,9.47231657]
[1734531607668,2.3035,217.1,217.05,9.47231657]
[1734531607969,2.3035,217.1,217.06,2.3038]
[1734531610166,2.3036,217.09,217.05,2.3039]
[1734531610373,7.16851657,217.1,217.0,4.596]
[1734531610671,7.16851657,217.04,217.0,5.62806885]
[1734531611773,7.16851657,217.04,216.96,7.16851657]
[1734531612369,7.16851657,217.04,216.98,7.16851657]
[1734531612567,2.2,217.05,217.0,7.16851657]
[1734531612973,2.2,217.05,217.02,2.3041]
[1734531613574,4.5039,217.05,217.02,2.3041]
[1734531615179,2.3041,217.04,217.0,2.3044]
[1734531615377,2.3041,217.04,216.98,12.79541961]
[1734531615677,2.2,217.07,217.02,7.16851657]
[1734531615870,2.2,217.1,217.04,7.16851657]
[1734531616077,7.16851657,217.12,217.06,7.16851657]
[1734531616373,2.2,217.11,217.06,7.16851657]
[1734531616582,2.3035,217.1,217.07,2.3036]
[1734531617278,4.5033,217.11,217.07,2.3036]
[1734531617473,13.82,217.2,217.09,2.3034]
[1734531617678,7.16851657,217.17,217.1,7.16851657]
[1734531617869,9.47121657,217.17,217.1,7.16851657]
[1734531618070,7.16851657,217.17,217.11,2.3033]
[1734531618271,7.16851657,217.15,217.07,1.5823]
[1734531618474,7.16851657,217.13,217.07,1.5823]
[1734531618674,2.2,217.12,217.08,2.3035]
[1734531618870,2.2,217.12,217.08,7.16851657]
[1734531620179,2.2,217.12,217.07,1.5823]
[1734531620180,2.2,217.12,217.09,2.3035]
[1734531620377,2.2,217.12,217.07,8.75081657]
[1734531620575,2.2,217.12,217.08,2.3036]
[1734531620878,2.2,217.12,217.06,1.5621]
[1734531622077,2.2,217.12,217.08,2.3036]
[1734531622376,9.47171657,217.13,217.06,1.5621]
[1734531622377,2.2,217.11,217.06,8.73061657]
[1734531622576,2.2,217.11,217.07,2.3036]
[1734531622776,2.2,217.11,217.06,8.73061657]
[1734531623175,7.16851657,217.13,217.06,8.73061657]
[1734531623381,2.2,217.12,217.08,2.3035]
[1734531623978,2.2,217.12,217.09,2.3035]
[1734531630797,2.2,217.17,217.1,7.16851657]
[1734531631098,2.2,217.17,217.12,7.16851657]
[1734531631293,14.8376,217.26,217.12,7.16851657]
[1734531631595,10.83215311,217.25,217.18,7.16851657]
[1734531631796,7.16851657,217.26,217.18,7.16851657]
[1734531631990,2.2,217.25,217.18,7.16851657]
[1734531632589,27.68971385,217.28,217.2,7.16851657]
[1734531632800,2.2,217.29,217.22,7.16851657]
[1734531632997,7.16851657,217.28,217.24,2.3019]
[1734531633297,7.16851657,217.26,217.17,2.2]
[1734531633500,7.16851657,217.26,217.19,7.16851657]
[1734531633698,7.16851657,217.26,217.22,2.3021]
[1734531633900,2.2,217.27,217.22,2.3021]
[1734531634295,0.64015,217.23,217.22,2.3021]
[1734531636502,0.64015,217.23,217.21,7.16851657]
[1734531636700,0.64015,217.23,217.21,9.47071657]
[1734531637203,0.64015,217.23,217.22,2.3021]
[1734531640895,0.64015,217.23,217.21,2.3022]
[1734531641801,0.64015,217.23,217.22,2.3021]
[1734531642395,0.64015,217.23,217.14,1.4768]
[1734531642600,7.80866657,217.23,217.16,7.16851657]
[1734531643299,2.3023,217.21,217.16,9.47121657]
[1734531643493,2.3023,217.21,217.16,7.16851657]
[1734531643693,2.3023,217.21,217.17,2.3026]
[1734531644505,2.3024,217.2,217.14,8.64531657]
[1734531644698,2.3024,217.2,217.16,2.3027]
[1734531645602,2.3024,217.2,217.16,9.47121657]
[1734531647204,2.3024,217.2,217.16,2.3027]
[1734531648606,7.16851657,217.17,217.09,7.16851657]
[1734531648804,7.16851657,217.15,217.05,2.2]
[1734531649106,2.3032,217.12,217.07,2.3036]
[1734531649409,4.5032,217.12,217.07,2.3036]
[1734531649904,7.16851657,217.11,217.05,7.16851657]
[1734531650206,7.16851657,217.09,217.01,11.73511657]
[1734531650407,7.16851657,217.07,217.01,10.24731657]
[1734531650709,4.4639,217.06,217.01,12.55161657]
[1734531652611,7.16851657,217.05,216.97,7.16851657]
[1734531652811,7.16851657,217.03,216.95,14.32338719]
[1734531653014,2.3046,216.99,216.94,9.47361657]
[1734531653312,7.16851657,216.99,216.88,3.0318]
[1734531653507,2.3048,216.98,216.92,9.47381657]
[1734531653809,7.16851657,216.99,216.92,7.16851657]
[1734531654010,2.16,217.0,216.88,3.0318]
[1734531654011,2.16,217.0,216.88,14.25832502]
[1734531655414,2.3048,216.97,216.91,2.3054]
[1734531655609,11.22652502,216.99,216.88,14.25832502]
[1734531656110,2.305,216.96,216.91,2.3054]
[1734531656306,11.22652502,217.02,216.88,14.25832502]
[1734531656505,2.18,217.01,216.88,14.25832502]
[1734531656705,2.3045,217.0,216.88,14.25832502]
[1734531657009,2.18,217.01,216.88,14.25832502]
[1734531657401,12.71422502,217.05,216.91,11.22652502]
[1734531657609,2.18,217.04,216.94,11.22652502]
[1734531658101,2.3043,217.02,216.95,2.3049]
[1734531658307,2.18,217.04,216.94,11.22652502]
[1734531658513,2.18,217.04,216.97,2.3047]
[1734531658812,2.18,217.04,216.94,11.22652502]
[1734531660108,2.3042,217.02,216.97,2.3048]
[1734531660613,2.3042,217.02,216.94,11.22652502]
[1734531660614,2.3042,217.02,216.96,2.3049]
[1734531661003,2.18,217.01,216.91,11.22652502]
[1734531661212,2.18,217.01,216.97,2.3047]
[1734531661413,2.18,217.01,216.91,11.22652502]
[1734531661612,2.18,217.01,216.89,2.18]
[1734531662109,2.3048,216.97,216.88,3.0318]
[1734531662414,2.18,216.96,216.93,2.3052]
[1734531662909,2.18,216.96,216.92,2.3053]
[1734531663115,2.18,216.96,216.88,3.0318]
[1734531663718,2.3051,216.94,216.89,2.3056]
[1734531664222,2.18,216.96,216.9,2.3054]
[1734531664516,2.18,216.96,216.88,3.0318]
[1734531665121,2.3048,216.97,216.9,2.3055]
[1734531665316,2.18,216.98,216.9,11.22652502]
[1734531665820,2.18,216.98,216.93,2.3051]
[1734531666523,2.18,216.98,216.91,2.3053]
[1734531666820,2.18,216.98,216.88,3.0318]
[1734531667420,2.3048,216.97,216.92,2.3053]
[1734531669119,4.4847,216.98,216.93,2.3052]
[1734531669320,2.18,216.98,216.88,3.0318]
[1734531670521,4.4847,216.98,216.93,2.3051]
[1734531671323,2.18,216.98,216.88,8.69311098]
[1734531671522,2.18,216.98,216.9,11.22652502]
[1734531672920,2.18,216.98,216.94,2.305]
[1734531673721,2.18,216.98,216.9,11.22652502]
[1734531673921,2.18,216.98,216.95,2.3049]
[1734531674126,2.18,216.98,216.9,11.22652502]
[1734531675022,2.18,216.98,216.95,2.3049]
[1734531675524,2.18,216.98,216.88,8.69311098]
[1734531675716,11.22652502,216.96,216.83,1.4917]
[1734531675923,11.22652502,216.96,216.84,5.42927245]
[1734531676122,11.22652502,216.96,216.83,1.4917]
[1734531676522,2.3056,216.9,216.85,2.3059]
[1734531676720,4.4856,216.9,216.85,2.3059]
[1734531677422,2.18,216.9,216.84,2.3061]
[1734531677827,2.18,216.9,216.81,11.22652502]
[1734531678328,2.18,216.9,216.81,16.82520273]
[1734531678523,2.18,216.9,216.82,1.5958]
[1734531678826,2.18,216.9,216.87,2.3057]
[1734531679323,2.18,216.9,216.82,1.5958]
[1734531679525,4.4855,216.9,216.86,2.3059]
[1734531680625,4.4855,216.9,216.87,2.3058]
[1734531680827,2.18,216.9,216.87,2.3058]
[1734531681728,2.3054,216.92,216.88,2.3057]
[1734531681926,4.4854,216.92,216.88,2.3057]
[1734531682523,2.18,216.92,216.82,1.5958]
[1734531682924,11.22652502,216.9,216.79,3.0624]
[1734531684529,2.3061,216.84,216.79,5.3691]
[1734531684825,2.18,216.84,216.76,5.55792796]
[1734531685621,2.3064,216.82,216.76,2.307]
[1734531685929,2.3064,216.82,216.73,1.5712]
[1734531686429,2.3064,216.82,216.73,7.21536984]
[1734531686830,2.3065,216.81,216.76,2.3069]
[1734531687328,13.40652502,216.84,216.71,1.522]
[1734531687527,2.3068,216.79,216.74,2.3071]
[1734531687728,2.18,216.78,216.74,2.3071]
[1734531688428,4.4868,216.78,216.74,2.3071]
[1734531689531,4.4868,216.78,216.75,2.3071]
[1734531690123,2.18,216.78,216.71,1.522]
[1734531690328,2.3071,216.76,216.72,2.3074]
[1734531691031,2.3072,216.75,216.71,2.3075]
[1734531691233,2.3072,216.75,216.67,1.497]
[1734531691234,13.40652502,216.78,216.67,3.0123]
[1734531692535,2.3073,216.74,216.7,2.3075]
[1734531692735,2.18,216.73,216.7,2.3075]
[1734531693230,2.18,216.73,216.67,3.0123]
[1734531693429,2.3075,216.71,216.67,5.3202]
[1734531694028,2.18,216.73,216.67,3.0123]
[1734531694532,2.18,216.73,216.71,2.3075]
[1734531695433,2.18,216.75,216.73,2.3072]
[1734531698337,2.18,216.75,216.72,2.3074]
[1734531698533,2.18,216.75,216.68,1.5223]
[1734531699430,2.18,216.75,216.73,2.3073]
[1734531700439,2.18,216.75,216.74,2.3072]
[1734531702231,2.18,216.79,216.69,11.22652502]
[1734531702635,2.18,216.79,216.74,2.3072]
[1734531702636,2.3068,216.78,216.74,2.3072]
[1734531702832,2.3068,216.78,216.69,11.22652502]
[1734531703436,4.4867,216.79,216.75,2.3071]
[1734531704649,2.18,216.79,216.68,1.5223]
[1734531705351,2.18,216.79,216.7,2.3076]
[1734531705352,2.3073,216.73,216.7,2.3076]
[1734531706240,2.3072,216.75,216.71,2.3075]
[1734531706442,2.18,216.74,216.71,2.3075]
[1734531706843,2.18,216.74,216.67,3.0123]
[1734531707345,2.3077,216.69,216.65,2.3081]
[1734531707549,2.3077,216.69,216.61,4.3829]
[1734531707750,2.18,216.68,216.61,4.3829]
[1734531708447,2.18,216.68,216.64,2.3082]
[1734531709851,4.4878,216.68,216.63,2.3084]
[1734531710052,2.18,216.68,216.61,4.3829]
[1734531710546,2.3082,216.65,216.61,5.2377]
[1734531710945,2.3082,216.65,216.61,2.3086]
[1734531711146,2.18,216.68,216.56,16.87545266]
[1734531711349,2.18,216.68,216.53,16.48132502]
[1734531711745,2.18,216.68,216.58,2.3089]
[1734531711746,2.3085,216.63,216.58,2.3089]
[1734531711950,2.18,216.62,216.53,16.48132502]
[1734531712150,2.18,216.62,216.56,11.22652502]
[1734531712451,2.18,216.62,216.59,2.3087]
[1734531713146,5.46838835,216.71,216.59,11.22652502]
[1734531713449,2.18,216.7,216.59,11.22652502]
[1734531713652,2.3079,216.68,216.63,2.3084]
[1734531714251,2.18,216.7,216.59,11.22652502]
[1734531714454,2.18,216.7,216.61,2.9439]
[1734531714853,2.18,216.7,216.61,4.487]
[1734531715258,4.4877,216.7,216.63,2.3083]
[1734531715446,4.4877,216.7,216.61,4.487]
[1734531716456,2.3078,216.69,216.61,4.487]
[1734531717254,2.18,216.7,216.61,4.487]
[1734531717449,5.42111817,216.73,216.61,4.487]
[1734531717756,2.18,216.71,216.61,4.487]
[1734531718150,2.3078,216.69,216.64,2.3082]
[1734531718557,2.3078,216.69,216.61,4.487]
[1734531719562,2.3078,216.69,216.65,2.3082]
[1734531720060,2.18,216.71,216.61,4.487]
[1734531720650,2.3083,216.64,216.61,5.3077]
[1734531720856,2.18,216.65,216.6,0.53396]
[1734531721557,2.3084,216.63,216.6,0.53396]
[1734531721752,2.18,216.65,216.6,0.53396]
[1734531724555,2.18,216.64,216.6,0.53396]
[1734531725058,2.3086,216.62,216.6,0.53396]
[1734531726159,2.18,216.63,216.6,0.53396]
[1734531726463,2.18,216.66,216.6,0.53396]
[1734531726854,2.18,216.66,216.63,2.3083]
[1734531727757,2.18,216.66,216.6,0.53396]
[1734531727959,2.18,216.66,216.62,2.3085]
[1734531728259,2.18,216.66,216.6,0.53396]
[1734531728462,2.18,216.66,216.62,2.3084]
[1734531729257,11.22652502,216.72,216.6,11.22652502]
[1734531729561,11.22652502,216.72,216.61,1.4873]
[1734531729562,2.18,216.71,216.61,1.4873]
[1734531729763,2.18,216.71,216.61,2.9659]
[1734531730355,2.3078,216.69,216.64,2.3082]
[1734531730561,11.22652502,216.75,216.61,2.9659]
[1734531730861,2.18,216.74,216.67,2.3079]
[1734531731664,2.3076,216.71,216.67,2.3079]
[1734531733260,2.3074,216.72,216.64,2.3082]